bitfinex-derivatives/quotes_BTCF0:USTF0_20250411
["timestamp","ask_amount","ask_price","bid_price","bid_amount"]
[1744359590817,0.3608,81354.0,81342.0,0.0615045]
[1744359590818,0.123009,81343.0,81342.0,0.0615045]
[1744359591012,0.1230241,81332.0,81331.0,0.00049181]
[1744359591212,0.4838241,81332.0,81331.0,0.00049181]
[1744359591408,0.4838241,81332.0,81331.0,0.12351741]
[1744359591621,0.4838241,81332.0,81331.0,0.00049181]
[1744359592021,0.7338241,81332.0,81331.0,1e-08]
[1744359592215,0.1230407,81321.0,81320.0,0.1230421]
[1744359592821,0.3772407,81321.0,81320.0,0.1230821]
[1744359594220,0.3772407,81321.0,81320.0,4e-05]
[1744359595128,0.3772407,81321.0,81320.0,0.1230823]
[1744359595315,0.3772407,81321.0,81320.0,4e-05]
[1744359596015,0.38882103,81321.0,81320.0,4e-05]
[1744359596623,0.1230498,81317.0,81316.0,0.0615239]
[1744359597025,0.1230544,81312.0,81311.0,0.3608]
[1744359597318,0.1230544,81312.0,81307.0,0.00054596]
[1744359597319,0.1230604,81308.0,81307.0,0.00054596]
[1744359597625,0.1230604,81308.0,81307.0,0.00049196]
[1744359597825,0.1230604,81308.0,81307.0,0.00053196]
[1744359598026,0.1230604,81308.0,81307.0,0.00049196]
[1744359598218,0.1230604,81308.0,81307.0,0.00053196]
[1744359598620,0.1230604,81308.0,81307.0,0.00049196]
[1744359598820,0.1230604,81308.0,81307.0,0.00053196]
[1744359599021,0.1230604,81308.0,81307.0,0.12359386]
[1744359599621,0.1230604,81308.0,81307.0,0.00053196]
[1744359600129,0.123071,81301.0,81300.0,0.2230725]
[1744359600823,0.134,81302.0,81301.0,0.123071]
[1744359601128,0.3608,81304.0,81303.0,0.123068]
[1744359601428,0.4838665,81304.0,81303.0,0.123068]
[1744359602025,0.3608,81304.0,81303.0,0.27204092]
[1744359602426,0.3608,81304.0,81303.0,0.27208092]
[1744359602928,0.3608,81304.0,81303.0,0.53698092]
[1744359603523,0.00018448,81320.0,81318.0,0.1230453]
[1744359603832,0.8446438,81319.0,81318.0,0.1230453]
[1744359604530,0.7216,81319.0,81318.0,0.3794453]
[1744359604922,0.7216,81319.0,81318.0,0.52841822]
[1744359605119,0.00018448,81320.0,81319.0,0.1230438]
[1744359605427,0.3608,81337.0,81329.0,0.1230286]
[1744359605623,0.3608,81337.0,81329.0,0.27200152]
[1744359605926,0.1228,81340.0,81329.0,0.27200152]
[1744359606125,0.1230205,81335.0,81329.0,0.51970152]
[1744359606326,0.1230212,81334.0,81329.0,0.51970152]
[1744359606525,0.0615084,81337.0,81329.0,4e-05]
[1744359606526,0.1234271,81330.0,81329.0,4e-05]
[1744359606744,0.1234271,81330.0,81329.0,0.1230686]
[1744359607035,0.2462271,81330.0,81329.0,0.1230286]
[1744359607228,0.2462271,81330.0,81329.0,0.1230686]
[1744359608218,0.1232,81330.0,81329.0,0.27204152]
[1744359608424,0.0004,81330.0,81329.0,0.52224152]
[1744359608625,0.1234271,81330.0,81329.0,0.39454152]
[1744359608934,0.0004,81330.0,81329.0,0.39454152]
[1744359609731,0.0004,81330.0,81329.0,0.52220152]
[1744359609934,0.0004,81330.0,81329.0,0.52224152]
[1744359610827,0.1234271,81330.0,81329.0,0.1230686]
[1744359611221,0.1234271,81330.0,81329.0,0.1230286]
[1744359611427,0.1234271,81330.0,81329.0,0.1230686]
[1744359612032,0.2448271,81330.0,81329.0,0.1230686]
[1744359612827,0.2448271,81330.0,81329.0,4e-05]
[1744359613028,0.0615157,81328.0,81322.0,0.0615192]
[1744359613236,0.1230392,81322.0,81321.0,0.23397514]
[1744359613536,0.4838392,81322.0,81321.0,0.00018448]
[1744359613736,0.4838392,81322.0,81321.0,0.00022448]
[1744359614039,0.184589,81309.0,81308.0,0.1230604]
[1744359614337,0.1230619,81307.0,81306.0,0.0615314]
[1744359614929,0.3835619,81307.0,81306.0,0.0615314]
[1744359616024,0.1279,81307.0,81306.0,0.0615314]
[1744359616229,0.11672,81311.0,81310.0,0.1230574]
[1744359616430,0.1339,81313.0,81312.0,0.1230544]
[1744359616635,0.2569528,81313.0,81312.0,0.1230544]
[1744359617034,0.1339,81313.0,81312.0,0.1230544]
[1744359617339,0.00018448,81315.0,81314.0,0.1230513]
[1744359617533,0.00018448,81315.0,81314.0,0.27202422]
[1744359618526,0.0615098,81335.0,81324.0,0.0615179]
[1744359618732,0.1339,81332.0,81329.0,0.27200152]
[1744359619437,0.2401895,81330.0,81329.0,0.27200152]
[1744359619833,0.3703895,81330.0,81329.0,0.27200152]
[1744359620228,0.3703895,81330.0,81329.0,0.1230286]
[1744359620432,0.1230332,81326.0,81325.0,0.2523347]
[1744359620632,0.1230332,81326.0,81325.0,0.40130762]
[1744359621749,0.1230332,81326.0,81325.0,0.2523347]
[1744359622137,0.4838332,81326.0,81325.0,0.1230347]
[1744359622735,0.4838332,81326.0,81325.0,0.1230747]
[1744359627752,0.4838332,81326.0,81325.0,4e-05]
[1744359628643,0.1230347,81325.0,81324.0,0.1230351]
[1744359628943,0.1230407,81322.0,81321.0,0.1230393]
[1744359629346,0.3829407,81322.0,81321.0,0.27201222]
[1744359629843,0.1230438,81319.0,81318.0,0.1230441]
[1744359630337,0.4838438,81319.0,81318.0,0.27201702]
[1744359630751,0.4838438,81319.0,81318.0,0.14901292]
[1744359630942,0.4838438,81319.0,81318.0,4e-05]
[1744359631137,0.1230619,81307.0,81302.0,0.123069]
[1744359631338,0.4838619,81307.0,81306.0,0.00025738]
[1744359631542,0.4838619,81307.0,81306.0,0.00018448]
[1744359631852,0.4838619,81307.0,81306.0,0.00022448]
[1744359632043,0.7391619,81307.0,81306.0,0.00022448]
[1744359632445,0.75139919,81307.0,81306.0,0.00022448]
[1744359633249,0.75139919,81307.0,81306.0,0.12328788]
[1744359633757,0.75139919,81307.0,81306.0,0.00022448]
[1744359636252,0.1230801,81295.0,81291.0,0.23379066]
[1744359636450,0.4838801,81295.0,81291.0,0.23379066]
[1744359636649,0.1230846,81292.0,81291.0,0.23379066]
[1744359639362,0.1230846,81292.0,81291.0,0.19039629]
[1744359639653,0.23828,81294.0,81283.0,0.0004921]
[1744359639863,0.4838967,81284.0,81283.0,0.0004921]
[1744359640253,0.4838967,81284.0,81283.0,0.0005321]
[1744359640672,0.7435967,81284.0,81283.0,0.0005321]
[1744359643061,0.75535222,81284.0,81283.0,0.0005321]
[1744359643257,0.3608,81284.0,81283.0,0.1236304]
[1744359644055,0.3608,81284.0,81283.0,0.3781304]
[1744359644862,0.4838967,81284.0,81283.0,0.3781304]
[1744359645561,0.4838967,81284.0,81283.0,0.2550321]
[1744359645761,0.6053967,81284.0,81283.0,0.2550321]
[1744359646160,0.6053967,81284.0,81283.0,0.3781304]
[1744359646354,0.6053967,81284.0,81283.0,0.2550321]
[1744359647158,0.6053967,81284.0,81283.0,0.2549921]
[1744359647358,0.6053967,81284.0,81283.0,0.2550321]
[1744359648551,0.4838967,81284.0,81283.0,0.2550321]
[1744359648760,0.4838967,81284.0,81283.0,0.3781304]
[1744359649155,0.4838967,81284.0,81283.0,0.2550321]
[1744359650166,0.4838967,81284.0,81283.0,0.3781304]
[1744359650167,0.7402967,81284.0,81283.0,0.3781304]
[1744359650852,0.6145967,81284.0,81283.0,0.3781304]
[1744359652353,0.1307,81284.0,81283.0,0.52710332]
[1744359652561,0.3608,81285.0,81284.0,0.1230967]
[1744359652758,0.3608,81285.0,81284.0,0.64806962]
[1744359653155,0.1230893,81289.0,81288.0,0.1230907]
[1744359653357,0.1230893,81289.0,81288.0,0.27206362]
[1744359653660,0.123087,81291.0,81290.0,0.1230861]
[1744359653865,0.246287,81291.0,81290.0,0.1230861]
[1744359654055,0.246287,81291.0,81290.0,0.27205902]
[1744359654260,0.1232,81291.0,81290.0,0.27205902]
[1744359654659,0.2462861,81291.0,81290.0,0.27205902]
[1744359655359,0.0615417,81293.0,81292.0,0.1230846]
[1744359655563,0.1293,81295.0,81294.0,0.1230816]
[1744359655766,0.11652,81296.0,81295.0,0.27205302]
[1744359655969,0.00018448,81297.0,81296.0,0.1230786]
[1744359656266,0.00018448,81297.0,81296.0,0.39745152]
[1744359660268,0.00018448,81297.0,81296.0,0.58780781]
[1744359661669,0.00018448,81297.0,81296.0,0.58784781]
[1744359662177,0.14704573,81308.0,81307.0,0.1230619]
[1744359662469,0.14704573,81308.0,81307.0,0.27203482]
[1744359662670,0.27010613,81308.0,81307.0,0.27203482]
[1744359663070,0.14704573,81308.0,81307.0,0.27203482]
[1744359664761,0.27774573,81313.0,81312.0,0.1230544]
[1744359664956,0.27774573,81313.0,81312.0,0.27202732]
[1744359665173,0.40079853,81313.0,81312.0,0.27202732]
[1744359665473,0.40079853,81313.0,81308.0,0.1331]
[1744359665474,0.1230589,81309.0,81308.0,0.1331]
[1744359665676,0.1230619,81307.0,81306.0,0.1230631]
[1744359666262,0.3763619,81307.0,81306.0,0.1230631]
[1744359666567,0.1267,81307.0,81306.0,0.27203602]
[1744359667564,0.2497619,81307.0,81306.0,0.1230631]
[1744359668361,0.2497619,81307.0,81306.0,0.1231031]
[1744359668567,0.2497619,81307.0,81306.0,0.27203602]
[1744359668769,0.1267,81307.0,81306.0,0.27207602]
[1744359668968,0.2497619,81307.0,81306.0,0.27207602]
[1744359669475,0.1267,81307.0,81306.0,0.27207602]
[1744359669684,0.1267,81307.0,81306.0,0.27203602]
[1744359669868,0.1267,81307.0,81306.0,0.27207602]
[1744359670670,0.0615265,81313.0,81312.0,0.1230544]
[1744359670870,0.0615265,81313.0,81312.0,0.27202732]
[1744359671080,0.0615265,81313.0,81312.0,0.1230544]
[1744359671276,0.1902265,81313.0,81312.0,0.1230544]
[1744359671475,0.1902265,81313.0,81308.0,0.1230589]
[1744359671476,0.1230599,81309.0,81308.0,0.1230589]
[1744359671873,0.3847599,81309.0,81308.0,0.1230589]
[1744359672873,0.2617,81309.0,81308.0,0.1230589]
[1744359673078,0.133,81309.0,81308.0,0.40353182]
[1744359673667,0.133,81309.0,81308.0,0.53663182]
[1744359676380,0.133,81309.0,81308.0,0.27203182]
[1744359676575,0.133,81309.0,81308.0,0.52803182]
[1744359676985,0.1230514,81314.0,81313.0,0.1230528]
[1744359677684,0.1230514,81314.0,81313.0,0.3810528]
[1744359678874,0.44275788,81316.0,81315.0,0.1230498]
[1744359679084,0.31970858,81316.0,81315.0,0.1230498]
[1744359681575,0.1230634,81306.0,81305.0,0.19041029]
[1744359681974,0.4838634,81306.0,81305.0,0.19041029]
[1744359682183,0.1230725,81300.0,81299.0,0.00018448]
[1744359682389,0.1230771,81297.0,81296.0,7.29e-05]
[1744359682677,0.1230967,81284.0,81283.0,0.28962785]
[1744359682885,0.1230967,81284.0,81283.0,0.35744522]
[1744359683384,0.1230967,81284.0,81283.0,0.48054352]
[1744359683586,0.2544,81284.0,81283.0,0.48054352]
[1744359683793,0.3774967,81284.0,81283.0,0.62951644]
[1744359685078,0.3774967,81284.0,81283.0,0.35744522]
[1744359685795,0.3774967,81284.0,81283.0,0.35748522]
[1744359686679,0.3774967,81284.0,81283.0,0.0005321]
[1744359687690,0.3774967,81284.0,81283.0,0.0004921]
[1744359687894,0.3774967,81284.0,81283.0,0.0005321]
[1744359689182,0.3774967,81284.0,81283.0,0.0004921]
[1744359689583,0.3774967,81284.0,81283.0,0.0005321]
[1744359690388,0.3774967,81284.0,81283.0,0.0004921]
[1744359691190,0.3774967,81284.0,81283.0,0.0005321]
[1744359691387,0.3774967,81284.0,81283.0,0.0004921]
[1744359691784,0.3774967,81284.0,81283.0,0.0005321]
[1744359697696,0.2544,81284.0,81283.0,0.0005321]
[1744359697902,0.1323,81284.0,81283.0,0.27260332]
[1744359698206,0.14700887,81287.0,81286.0,0.1230937]
[1744359698399,0.00018448,81292.0,81290.0,0.1230877]
[1744359698400,0.18312948,81291.0,81290.0,0.1230877]
[1744359698792,0.18312948,81291.0,81290.0,0.27206062]
[1744359699202,0.31642948,81291.0,81290.0,0.27206062]
[1744359699397,0.18312948,81291.0,81290.0,0.14897292]
[1744359699605,0.18312948,81291.0,81290.0,0.27206062]
[1744359702003,0.00018448,81292.0,81291.0,0.1230861]
[1744359702202,0.00018448,81292.0,81291.0,0.52495902]
[1744359702602,0.3608,81300.0,81291.0,0.40187292]
[1744359702906,0.3608,81300.0,81299.0,0.27204692]
[1744359703094,0.4838725,81300.0,81299.0,0.14897292]
[1744359703295,0.1230846,81292.0,81291.0,0.1241]
[1744359703804,0.1230846,81292.0,81291.0,0.27311292]
[1744359704000,0.1230846,81292.0,81291.0,0.14901292]
[1744359704201,0.1230892,81289.0,81288.0,0.3608]
[1744359704407,0.1230892,81289.0,81288.0,0.50977292]
[1744359704794,0.1230892,81289.0,81288.0,0.3608]
[1744359704995,0.2523892,81289.0,81288.0,0.3608]
[1744359705408,0.2523892,81289.0,81288.0,0.36084]
[1744359705705,0.2523892,81289.0,81288.0,0.3608]
[1744359705906,0.1230668,81304.0,81288.0,0.50981292]
[1744359706206,0.1337,81304.0,81299.0,0.27204692]
[1744359706510,0.1267,81303.0,81299.0,0.27204692]
[1744359706808,0.1468175,81307.0,81299.0,0.27204692]
[1744359707310,0.1468175,81307.0,81299.0,0.52824692]
[1744359707902,0.00018448,81300.0,81299.0,0.52824692]
[1744359710302,0.00018448,81300.0,81299.0,0.71841873]
[1744359715306,0.3608,81313.0,81312.0,0.1230544]
[1744359715505,0.3608,81313.0,81312.0,0.27202732]
[1744359716113,0.3608,81313.0,81312.0,0.52942732]
[1744359716314,0.4838528,81313.0,81312.0,0.52942732]
[1744359717421,0.4838528,81313.0,81312.0,0.2574]
[1744359717613,0.4838528,81313.0,81312.0,0.3804944]
[1744359719825,0.4838528,81313.0,81312.0,0.52946732]
[1744359721619,0.3608,81313.0,81312.0,0.52946732]
[1744359721923,0.1225,81315.0,81314.0,0.1230513]
[1744359722123,0.00018448,81321.0,81319.0,0.1230438]
[1744359722420,0.4947,81320.0,81319.0,0.27201672]
[1744359723224,0.4947,81320.0,81319.0,0.52501672]
[1744359724014,0.3608,81320.0,81319.0,0.52501672]
[1744359725414,0.1468175,81333.0,81320.0,0.1230423]
[1744359725619,0.1468175,81333.0,81332.0,0.1230241]
[1744359725921,0.00923628,81347.0,81344.0,0.123006]
[1744359726113,0.1291,81353.0,81352.0,0.1229939]
[1744359726616,0.1291,81353.0,81352.0,0.27196682]
[1744359727018,0.1291,81353.0,81352.0,0.53596682]
[1744359728324,0.25672541,81357.0,81353.0,0.1229923]
[1744359728516,0.1291,81356.0,81353.0,0.14897292]
[1744359728721,0.1229939,81352.0,81351.0,0.3608]
[1744359728919,0.0004,81354.0,81353.0,0.14897292]
[1744359729122,0.0004,81354.0,81353.0,0.27196522]
[1744359729626,0.0004,81354.0,81353.0,0.53526522]
[1744359733729,0.0004,81354.0,81353.0,0.72543703]
[1744359735625,0.0004,81354.0,81353.0,0.74339407]
[1744359736429,0.3612,81354.0,81353.0,0.19017181]
[1744359736625,0.1844917,81353.0,81352.0,0.1229936]
[1744359736830,0.4375917,81353.0,81352.0,0.1229936]
[1744359737126,0.1230044,81345.0,81343.0,0.123007]
[1744359737328,0.4838044,81345.0,81343.0,5.4e-05]
[1744359737527,0.4838044,81345.0,81343.0,0.1230065]
[1744359737830,0.3608,81345.0,81344.0,0.12323048]
[1744359738032,0.6207,81345.0,81344.0,0.12323048]
[1744359739134,0.495,81345.0,81344.0,0.2722034]
[1744359739429,0.0004,81354.0,81353.0,0.1229923]
[1744359739628,0.0004,81354.0,81353.0,0.27196522]
[1744359739829,0.0004,81354.0,81353.0,0.40296522]
[1744359740431,0.0004,81354.0,81353.0,0.27196522]
[1744359741330,0.0004,81354.0,81353.0,0.27200522]
[1744359741528,0.0004,81354.0,81353.0,0.28985855]
[1744359742931,0.0004,81354.0,81353.0,0.55615855]
[1744359743324,0.0004,81354.0,81353.0,0.28985855]
[1744359745129,0.0004,81354.0,81353.0,0.28981855]
[1744359745426,0.0004,81354.0,81353.0,0.28985855]
[1744359745635,0.0004,81354.0,81353.0,0.54435855]
[1744359745929,0.0004,81354.0,81353.0,0.5452549]
[1744359746332,0.0004,81354.0,81353.0,0.5452553]
[1744359746531,0.129,81354.0,81353.0,0.56127607]
[1744359747532,0.00018448,81361.0,81353.0,0.62845558]
[1744359747734,0.36085401,81376.0,81373.0,0.1229621]
[1744359747928,0.1267,81375.0,81373.0,0.30670587]
[1744359748337,0.1267,81375.0,81374.0,0.1229606]
[1744359748535,0.1267,81375.0,81374.0,0.2906836]
[1744359748738,0.1267,81375.0,81374.0,0.57270437]
[1744359750139,0.1267,81375.0,81374.0,0.44974377]
[1744359750329,0.6249591,81375.0,81374.0,0.01875008]
[1744359750527,0.5022591,81375.0,81374.0,1e-08]
[1744359750730,0.1229697,81368.0,81367.0,0.0614854]
[1744359750931,0.1229677,81370.0,81369.0,0.1229666]
[1744359751131,0.1229677,81370.0,81366.0,0.00023836]
[1744359751132,0.0614827,81371.0,81370.0,0.1229666]
[1744359751332,0.1229712,81368.0,81367.0,0.1229707]
[1744359751538,0.1229712,81367.0,81366.0,0.00018436]
[1744359752029,0.3729712,81367.0,81366.0,0.00018436]
[1744359752433,0.3729712,81367.0,81366.0,0.00022436]
[1744359752630,0.1229712,81367.0,81366.0,0.00022436]
[1744359753749,0.1229757,81364.0,81363.0,0.29381516]
[1744359753937,0.4837757,81364.0,81363.0,0.29381516]
[1744359754144,0.7337757,81364.0,81363.0,0.29381516]
[1744359754444,0.7337757,81364.0,81363.0,0.29385516]
[1744359755243,0.7337757,81364.0,81363.0,4e-05]
[1744359756541,0.4837757,81364.0,81363.0,4e-05]
[1744359757143,0.7337757,81364.0,81363.0,4e-05]
[1744359757644,0.1229878,81356.0,81355.0,0.00018436]
[1744359758237,0.4837878,81356.0,81355.0,0.00018436]
[1744359758539,0.4837878,81356.0,81355.0,0.00022436]
[1744359760040,0.8445878,81356.0,81355.0,0.00018436]
[1744359760247,0.1229969,81350.0,81349.0,0.21986051]
[1744359760745,0.1229969,81350.0,81349.0,0.21990051]
[1744359761145,0.25,81350.0,81340.0,0.35695312]
[1744359761349,0.25,81350.0,81340.0,0.35700712]
[1744359761350,0.8446105,81341.0,81340.0,0.35700712]
[1744359761647,0.0614971,81352.0,81341.0,0.061505]
[1744359761850,0.1229974,81350.0,81347.0,0.1230013]
[1744359762045,0.11532,81355.0,81345.0,0.0615021]
[1744359762248,0.123,81348.0,81347.0,0.1230014]
[1744359762544,0.1230032,81346.0,81345.0,0.1230038]
[1744359762740,0.1230056,81345.0,81343.0,0.0615037]
[1744359762940,0.1230056,81345.0,81344.0,0.14123584]
[1744359763140,0.1230031,81346.0,81342.0,0.21047732]
[1744359763340,0.1230031,81346.0,81343.0,0.01822872]
[1744359763545,0.1230044,81345.0,81344.0,0.1230049]
[1744359763751,0.1889019,81346.0,81344.0,0.01836149]
[1744359763950,0.0615025,81345.0,81342.0,0.1230087]
[1744359764152,0.123006,81344.0,81343.0,0.01836254]
[1744359764451,0.1230075,81343.0,81342.0,4e-05]
[1744359764645,0.4838075,81343.0,81342.0,4e-05]
[1744359764845,0.7352075,81343.0,81342.0,4e-05]
[1744359766246,0.3608,81343.0,81342.0,0.27202192]
[1744359766441,0.3608,81343.0,81342.0,0.29051453]
[1744359767953,0.3608,81343.0,81342.0,0.30667471]
[1744359769146,0.3608,81343.0,81342.0,0.30707545]
[1744359771355,0.3608,81343.0,81342.0,0.30690461]
[1744359771655,0.4838075,81343.0,81342.0,0.01620018]
[1744359772155,0.4959617,81343.0,81342.0,0.01616018]
[1744359772356,0.4959617,81343.0,81342.0,0.01620018]
[1744359772547,0.4959617,81343.0,81342.0,4e-05]
[1744359775251,0.7584617,81343.0,81342.0,4e-05]
[1744359775651,0.123015,81338.0,81337.0,0.00018436]
[1744359776658,0.388115,81338.0,81337.0,0.00018436]
[1744359776957,0.388115,81338.0,81337.0,0.12320086]
[1744359777161,0.388115,81338.0,81337.0,0.00018436]
[1744359780457,0.388115,81338.0,81331.0,0.00049181]
[1744359780458,0.1230241,81332.0,81331.0,1e-08]
[1744359780661,0.1230453,81318.0,81304.0,0.2648]
[1744359780960,0.8446453,81318.0,81304.0,0.2648]
[1744359781158,0.1230604,81308.0,81307.0,0.00049196]
[1744359781363,0.4838604,81308.0,81307.0,0.00056486]
[1744359781560,0.4838604,81308.0,81307.0,0.00049196]
[1744359781759,0.4838604,81308.0,81307.0,0.00053196]
[1744359782157,0.4838604,81308.0,81307.0,0.38689386]
[1744359782357,0.4838604,81308.0,81307.0,0.26383196]
[1744359783065,0.3608,81308.0,81307.0,0.38689386]
[1744359783359,0.3608,81308.0,81307.0,0.26383196]
[1744359783566,0.4838604,81308.0,81307.0,0.26383196]
[1744359783956,0.7379604,81308.0,81307.0,0.26383196]
[1744359784865,0.7379604,81308.0,81307.0,0.00053196]
[1744359785065,0.7379604,81308.0,81307.0,0.00049196]
[1744359785566,0.7379604,81308.0,81307.0,0.00053196]
[1744359786167,0.7379604,81308.0,81299.0,0.00018447]
[1744359786168,0.1230725,81300.0,81299.0,0.00018447]
[1744359786460,0.4838725,81300.0,81299.0,0.00025737]
[1744359786667,0.4838725,81300.0,81299.0,0.00018447]
[1744359786870,0.4838725,81300.0,81299.0,0.00022447]
[1744359787068,0.7463725,81300.0,81299.0,0.00022447]
[1744359790367,0.3608,81300.0,81299.0,0.27227139]
[1744359790565,0.1309,81307.0,81305.0,0.1230635]
[1744359790776,0.2539619,81307.0,81306.0,0.41297292]
[1744359791172,0.2539619,81307.0,81306.0,0.53603632]
[1744359791474,0.1309,81307.0,81306.0,0.53603632]
[1744359791666,0.2539619,81307.0,81306.0,0.53603632]
[1744359791866,0.3608,81308.0,81307.0,0.1230619]
[1744359792066,0.3608,81308.0,81307.0,0.53603482]
[1744359792266,0.4838604,81308.0,81307.0,0.53603482]
[1744359793780,0.4838604,81308.0,81307.0,0.41297292]
[1744359794074,0.4838604,81308.0,81307.0,0.53603482]
[1744359794975,0.1230634,81306.0,81305.0,0.1346]
[1744359795166,0.1230634,81306.0,81305.0,0.257665]
[1744359795368,0.1230634,81306.0,81305.0,0.40663792]
[1744359795571,0.1230634,81306.0,81305.0,0.1346]
[1744359795775,0.1230725,81300.0,81299.0,0.00022447]
[1744359796167,0.1230725,81300.0,81299.0,0.00018447]
[1744359796368,0.1230725,81300.0,81299.0,0.00022447]
[1744359796565,0.3820725,81300.0,81299.0,0.00022447]
[1744359796772,0.3608,81306.0,81299.0,0.14919739]
[1744359796972,0.3608,81306.0,81305.0,0.27203792]
[1744359797178,0.0615278,81312.0,81311.0,0.1230559]
[1744359797571,0.0615278,81312.0,81311.0,0.27202882]
[1744359797879,0.1289,81314.0,81313.0,0.1230528]
[1744359798184,0.4223111,81334.0,81315.0,0.14897292]
[1744359798474,0.1326,81336.0,81329.0,0.27200152]
[1744359798683,0.1289,81333.0,81329.0,0.27200152]
[1744359798872,0.1289,81333.0,81329.0,0.40480152]
[1744359799073,0.1230261,81331.0,81329.0,0.40480152]
[1744359799469,0.1238,81330.0,81329.0,0.40480152]
[1744359799681,0.0004,81330.0,81329.0,0.40480152]
[1744359801483,0.0004,81330.0,81329.0,0.53980152]
[1744359801681,0.1234271,81330.0,81329.0,0.53980152]
[1744359802187,0.1234271,81330.0,81329.0,0.53984152]
[1744359803376,0.4842271,81330.0,81329.0,0.28401292]
[1744359803580,0.6188271,81330.0,81329.0,0.135]
[1744359803780,0.6188271,81330.0,81329.0,0.13504]
[1744359804081,0.6188271,81330.0,81329.0,0.135]
[1744359804276,0.6188271,81330.0,81329.0,0.13504]
[1744359804583,0.6188271,81330.0,81329.0,0.135]
[1744359804782,0.6188271,81330.0,81329.0,0.13504]
[1744359806079,0.0615179,81325.0,81321.0,0.00018447]
[1744359806277,0.4838392,81322.0,81321.0,0.00018447]
[1744359806783,0.4838392,81322.0,81321.0,0.00022447]
[1744359812086,0.3608,81322.0,81311.0,0.1268]
[1744359812287,0.4838544,81312.0,81311.0,0.1268]
[1744359812786,0.4838544,81312.0,81311.0,0.12684]
[1744359813178,0.7405544,81312.0,81311.0,0.12684]
[1744359813983,0.6119544,81312.0,81311.0,0.27581292]
[1744359814191,0.4838544,81312.0,81311.0,0.39886882]
[1744359814387,0.3608,81312.0,81311.0,0.39886882]
[1744359814594,0.1230544,81312.0,81311.0,0.27581292]
[1744359814890,0.1230544,81312.0,81311.0,0.39886882]
[1744359815080,0.1230544,81312.0,81311.0,0.53561292]
[1744359815684,0.1230544,81312.0,81311.0,0.53557292]
[1744359815892,0.2477544,81312.0,81311.0,0.53557292]
[1744359816291,0.2477544,81312.0,81311.0,0.53561292]
[1744359818195,0.6085544,81312.0,81311.0,0.53561292]
[1744359819399,0.6085544,81312.0,81311.0,0.12684]
[1744359819994,0.1230665,81304.0,81303.0,0.00018447]
[1744359820198,0.4838665,81304.0,81303.0,0.00018447]
[1744359820389,0.4838665,81304.0,81303.0,0.00023847]
[1744359820694,0.49299403,81304.0,81303.0,0.00023847]
[1744359821096,0.75879403,81304.0,81303.0,0.00018447]
[1744359821295,0.77074732,81304.0,81303.0,0.00022447]
[1744359823197,0.77074732,81304.0,81303.0,0.00018447]
[1744359823391,0.77074732,81304.0,81303.0,0.00022447]
[1744359825395,0.1230816,81294.0,81293.0,5.4e-05]
[1744359825696,0.1230846,81292.0,81291.0,0.1347]
[1744359826199,0.1230846,81292.0,81291.0,0.28367292]
[1744359826394,0.2519846,81292.0,81291.0,0.28371292]
[1744359826595,0.3608,81294.0,81293.0,0.1230831]
[1744359826901,0.3608,81294.0,81293.0,0.27205602]
[1744359827400,0.3608,81294.0,81293.0,0.40735602]
[1744359827589,0.1904372,81299.0,81293.0,0.28427292]
[1744359827794,0.3135128,81299.0,81298.0,0.27204852]
[1744359829199,0.3135128,81299.0,81298.0,0.14897292]
[1744359829798,0.4408128,81299.0,81298.0,0.27487292]
[1744359830504,0.4408128,81299.0,81298.0,0.27491292]
[1744359831803,0.3135128,81299.0,81298.0,0.27491292]
[1744359834408,0.4368128,81299.0,81298.0,0.27491292]
[1744359834708,0.3135128,81299.0,81298.0,0.27491292]
[1744359834903,0.3135128,81299.0,81298.0,0.14901292]
[1744359835105,0.4368128,81299.0,81298.0,0.14901292]
[1744359838612,0.4368128,81299.0,81298.0,4e-05]
[1744359839012,0.1230786,81296.0,81295.0,0.1275]
[1744359840407,0.1230846,81292.0,81291.0,0.1347]
[1744359840613,0.4838846,81292.0,81291.0,0.1347]
[1744359840916,0.4838846,81292.0,81291.0,0.13474]
[1744359841112,0.0615415,81294.0,81293.0,0.1230831]
[1744359841313,0.47564,81301.0,81293.0,0.14897292]
[1744359841612,0.47564,81301.0,81299.0,0.27204692]
[1744359841800,0.11484,81301.0,81300.0,0.1230725]
[1744359842005,0.4838574,81310.0,81309.0,0.1230567]
[1744359842308,0.1230574,81310.0,81309.0,0.1230567]
[1744359842502,0.1230725,81300.0,81291.0,4e-05]
[1744359842699,0.4838725,81300.0,81291.0,4e-05]
[1744359843115,0.4838725,81300.0,81291.0,0.00018447]
[1744359843305,0.4838725,81300.0,81299.0,0.19021181]
[1744359843813,0.4838725,81300.0,81299.0,4e-05]
[1744359844006,0.0615407,81295.0,81291.0,0.00018447]
[1744359844214,0.4838846,81292.0,81291.0,0.00018447]
[1744359844900,0.4838846,81292.0,81291.0,0.00022447]
[1744359846115,0.4838846,81292.0,81291.0,0.14919739]
[1744359846613,0.4838846,81292.0,81291.0,0.00022447]
[1744359847116,0.4838846,81292.0,81291.0,0.00018447]
[1744359847306,0.6096846,81292.0,81291.0,0.00022447]
[1744359848515,0.6096846,81292.0,81291.0,0.01877687]
[1744359848911,0.6096846,81292.0,81291.0,0.00022447]
[1744359849107,0.6096846,81292.0,81291.0,0.01877696]
[1744359849501,0.2488846,81292.0,81291.0,0.16774988]
[1744359849705,0.1325,81299.0,81293.0,0.1230829]
[1744359849914,0.1921393,81296.0,81295.0,0.14897292]
[1744359850115,0.1230801,81295.0,81294.0,0.1282]
[1744359850412,0.1230801,81295.0,81294.0,0.0188769]
[1744359850616,0.3901801,81295.0,81294.0,0.0188769]
[1744359850815,0.3901801,81295.0,81294.0,0.0189169]
[1744359851111,0.3901801,81295.0,81294.0,0.0188769]
[1744359851418,0.3901801,81295.0,81294.0,0.0189169]
[1744359852520,0.3901801,81295.0,81294.0,0.0352431]
[1744359853218,0.3901801,81295.0,81294.0,0.0189169]
[1744359854520,0.3901801,81295.0,81291.0,0.00018447]
[1744359854521,0.1230846,81292.0,81291.0,0.00018447]
[1744359854717,0.5984046,81292.0,81291.0,0.00018447]
[1744359862039,0.4838846,81292.0,81291.0,0.00018447]
[1744359862234,0.5984046,81292.0,81291.0,0.00018447]
[1744359873736,0.4838846,81292.0,81291.0,0.00018447]
[1744359873936,0.5984046,81292.0,81291.0,0.00018447]
[1744359875043,0.47532,81292.0,81277.0,0.1302]
[1744359875246,0.1231043,81279.0,81278.0,0.1254]
[1744359875441,0.4839043,81279.0,81278.0,0.1254]
[1744359875745,0.4839043,81279.0,81278.0,0.27437292]
[1744359876147,0.1231043,81279.0,81278.0,0.27437292]
[1744359876936,0.1231043,81279.0,81278.0,0.29188335]
[1744359877135,0.00018447,81287.0,81280.0,0.0615514]
[1744359877342,0.00018447,81287.0,81286.0,0.27206662]
[1744359877635,0.00018447,81287.0,81286.0,0.28957705]
[1744359878256,0.00018447,81287.0,81286.0,0.68737705]